[Event "*** Titled Tuesday Blitz"]
[Site "Chess.com"]
[Date "2021.03.09"]
[Round "10"]
[White "andrewtnb"]
[Black "night_player"]
[Result "1-0"]
[WhiteElo "2304"]
[BlackElo "2163"]
[TimeControl "180+1"]
[EndTime "11:57:44 PST"]
[Termination "andrewtnb won by resignation"]

1. d4 {[%clk 0:02:53.5]} 1... f5 {[%clk 0:02:58.7]} 2. e4 {[%clk 0:02:48.6]}
2... fxe4 {[%clk 0:02:57.5]} 3. Nc3 {[%clk 0:02:48.8]} 3... Nf6 {[%clk
0:02:56.7]} 4. Bg5 {[%clk 0:02:47.9]} 4... g6 {[%clk 0:02:50.1]} 5. Qd2 {[%clk
0:02:35]} 5... Bg7 {[%clk 0:02:46.9]} 6. O-O-O {[%clk 0:02:34.9]} 6... d5 {[%clk
0:02:43.4]} 7. f3 {[%clk 0:02:32.7]} 7... exf3 {[%clk 0:02:40.1]} 8. Nxf3 {[%clk
0:02:32.1]} 8... Bg4 {[%clk 0:02:37.1]} 9. Qf4 {[%clk 0:02:27.7]} 9... Bxf3
{[%clk 0:02:34.4]} 10. Qxf3 {[%clk 0:02:25.1]} 10... O-O {[%clk 0:02:23.7]} 11.
Bxf6 {[%clk 0:02:20.2]} 11... exf6 {[%clk 0:02:09.1]} 12. Qxd5+ {[%clk
0:02:11.9]} 12... Kh8 {[%clk 0:01:55.6]} 13. Qxb7 {[%clk 0:02:05.3]} 13... Nd7
{[%clk 0:01:48.2]} 14. Bc4 {[%clk 0:02:04.1]} 14... Nb6 {[%clk 0:01:37.2]} 15.
Bb3 {[%clk 0:02:00.4]} 15... a5 {[%clk 0:01:35.9]} 16. a3 {[%clk 0:01:59.3]}
16... a4 {[%clk 0:01:26.4]} 17. Ba2 {[%clk 0:01:59.3]} 17... Qd6 {[%clk
0:01:18.4]} 18. Nb5 {[%clk 0:01:33.9]} 18... Qf4+ {[%clk 0:01:01.2]} 19. Kb1
{[%clk 0:01:31.9]} 19... Rab8 {[%clk 0:00:31.3]} 20. Qxc7 {[%clk 0:01:30.8]}
20... Qg5 {[%clk 0:00:30.9]} 21. Nd6 {[%clk 0:01:23.8]} 21... Nd5 {[%clk
0:00:12.2]} 22. Qxb8 {[%clk 0:01:20]} 22... Rxb8 {[%clk 0:00:11.6]} 23. Nf7+
{[%clk 0:01:20.1]} 23... Kg8 {[%clk 0:00:11.8]} 24. Nxg5 {[%clk 0:01:20.3]}
24... fxg5 {[%clk 0:00:11.3]} 25. Bxd5+ {[%clk 0:01:20.2]} 25... Kh8 {[%clk
0:00:11.8]} 26. c3 {[%clk 0:01:20]} 1-0

[Event "*** Titled Tuesday Blitz"]
[Site "Chess.com"]
[Date "2021.03.09"]
[Round "10"]
[White "Shuvalov"]
[Black "esapunov"]
[Result "0-1"]
[WhiteElo "2509"]
[BlackElo "2723"]
[TimeControl "180+1"]
[EndTime "11:57:54 PST"]
[Termination "esapunov won by resignation"]

1. Nf3 {[%clk 0:03:00.9]} 1... Nf6 {[%clk 0:02:59.6]} 2. c4 {[%clk 0:03:01]}
2... g6 {[%clk 0:02:59.8]} 3. Nc3 {[%clk 0:03:00.8]} 3... Bg7 {[%clk 0:02:59.5]}
4. e4 {[%clk 0:02:59.3]} 4... O-O {[%clk 0:02:50.1]} 5. d4 {[%clk 0:02:58.2]}
5... d6 {[%clk 0:02:50.5]} 6. Be2 {[%clk 0:02:57.7]} 6... e5 {[%clk 0:02:50.2]}
7. O-O {[%clk 0:02:57.7]} 7... Nc6 {[%clk 0:02:50.5]} 8. d5 {[%clk 0:02:57.3]}
8... Ne7 {[%clk 0:02:50.8]} 9. Ne1 {[%clk 0:02:57.5]} 9... Nd7 {[%clk
0:02:50.8]} 10. Be3 {[%clk 0:02:52.3]} 10... f5 {[%clk 0:02:51]} 11. f3 {[%clk
0:02:52.6]} 11... f4 {[%clk 0:02:50.3]} 12. Bf2 {[%clk 0:02:52.9]} 12... g5
{[%clk 0:02:51.1]} 13. Rc1 {[%clk 0:02:52.6]} 13... Ng6 {[%clk 0:02:50.2]} 14.
c5 {[%clk 0:02:51.6]} 14... Nxc5 {[%clk 0:02:50.4]} 15. b4 {[%clk 0:02:51.1]}
15... Na6 {[%clk 0:02:50.6]} 16. Nb5 {[%clk 0:02:51.1]} 16... Bd7 {[%clk
0:02:50.8]} 17. Nxa7 {[%clk 0:02:45.6]} 17... Qb8 {[%clk 0:02:40.2]} 18. Nb5
{[%clk 0:02:36.6]} 18... Nxb4 {[%clk 0:02:36.7]} 19. Nxc7 {[%clk 0:02:26.9]}
19... Rxa2 {[%clk 0:02:33.6]} 20. Ne6 {[%clk 0:02:00.2]} 20... Rc8 {[%clk
0:02:28.9]} 21. Bc4 {[%clk 0:01:46.1]} 21... Rb2 {[%clk 0:02:14.7]} 22. Nxg5
{[%clk 0:01:33.1]} 22... b5 {[%clk 0:02:10.8]} 23. Bd3 {[%clk 0:01:27.6]} 23...
Nxd3 {[%clk 0:01:48.1]} 24. Nxd3 {[%clk 0:01:26.6]} 24... Ra2 {[%clk 0:01:46.3]}
25. Nb4 {[%clk 0:01:23.5]} 25... Rxc1 {[%clk 0:01:26.6]} 26. Qxc1 {[%clk
0:01:22.1]} 26... Ra4 {[%clk 0:01:27.3]} 27. Nc6 {[%clk 0:01:21.3]} 27... Qe8
{[%clk 0:01:27]} 28. Qc2 {[%clk 0:01:12.4]} 28... Bf6 {[%clk 0:01:17.6]} 29. Ne6
{[%clk 0:01:08.6]} 29... Bxe6 {[%clk 0:01:17]} 30. dxe6 {[%clk 0:01:09.5]} 30...
Qxe6 {[%clk 0:01:16.3]} 31. Rb1 {[%clk 0:01:06.9]} 31... Rc4 {[%clk 0:01:08.2]}
32. Qb3 {[%clk 0:01:04]} 32... Rc1+ {[%clk 0:01:07.2]} 33. Rxc1 {[%clk
0:01:02.4]} 33... Qxb3 {[%clk 0:01:06.4]} 34. h3 {[%clk 0:00:59.9]} 34... Kf7
{[%clk 0:01:02]} 35. Kh2 {[%clk 0:00:51.6]} 35... Qb2 {[%clk 0:01:01.8]} 36. Rf1
{[%clk 0:00:50.6]} 36... Bh4 {[%clk 0:01:01.3]} 37. Bxh4 {[%clk 0:00:49.8]}
37... Nxh4 {[%clk 0:01:01.1]} 0-1

[Event "*** Titled Tuesday Blitz"]
[Site "Chess.com"]
[Date "2021.03.09"]
[Round "10"]
[White "tandaleo"]
[Black "ShahMatKanal"]
[Result "0-1"]
[WhiteElo "2371"]
[BlackElo "2515"]
[TimeControl "180+1"]
[EndTime "11:57:55 PST"]
[Termination "ShahMatKanal won by checkmate"]

1. d4 {[%clk 0:03:00.9]} 1... Nf6 {[%clk 0:02:57.3]} 2. c4 {[%clk 0:03:00.9]}
2... c5 {[%clk 0:02:56.4]} 3. d5 {[%clk 0:03:00.1]} 3... b5 {[%clk 0:02:56.8]}
4. Qc2 {[%clk 0:02:55.9]} 4... d6 {[%clk 0:02:50.9]} 5. e4 {[%clk 0:02:53.1]}
5... g6 {[%clk 0:02:51.3]} 6. f4 {[%clk 0:02:45.2]} 6... Bg7 {[%clk 0:02:51.3]}
7. Nf3 {[%clk 0:02:45.4]} 7... O-O {[%clk 0:02:50.9]} 8. cxb5 {[%clk 0:02:44.5]}
8... e6 {[%clk 0:02:36.5]} 9. dxe6 {[%clk 0:02:43]} 9... Bxe6 {[%clk 0:02:25.1]}
10. Be2 {[%clk 0:02:41.8]} 10... a6 {[%clk 0:02:19]} 11. bxa6 {[%clk 0:02:40.7]}
11... Nxa6 {[%clk 0:02:17.4]} 12. Bd2 {[%clk 0:02:37.7]} 12... Nb4 {[%clk
0:02:15.8]} 13. Bxb4 {[%clk 0:02:37.6]} 13... cxb4 {[%clk 0:02:16.7]} 14. O-O
{[%clk 0:02:28.2]} 14... Ng4 {[%clk 0:02:07.8]} 15. Qc6 {[%clk 0:01:33.7]} 15...
Bxb2 {[%clk 0:01:23.8]} 16. Nbd2 {[%clk 0:01:27.4]} 16... Bxa1 {[%clk
0:01:23.6]} 17. Rxa1 {[%clk 0:01:28]} 17... Qf6 {[%clk 0:01:23.9]} 18. Rf1
{[%clk 0:01:01.4]} 18... Rxa2 {[%clk 0:01:20.9]} 19. Qxd6 {[%clk 0:00:57]} 19...
Rd8 {[%clk 0:01:16.2]} 20. Qxb4 {[%clk 0:00:56.4]} 20... Qxf4 {[%clk 0:01:06.7]}
21. Bc4 {[%clk 0:00:25.2]} 21... Rdxd2 {[%clk 0:00:59.1]} 22. Nxd2 {[%clk
0:00:12.7]} 22... Qxh2# {[%clk 0:00:58.6]} 0-1

[Event "*** Titled Tuesday Blitz"]
[Site "Chess.com"]
[Date "2021.03.09"]
[Round "10"]
[White "ailime26"]
[Black "SanQui14"]
[Result "0-1"]
[WhiteElo "2090"]
[BlackElo "2342"]
[TimeControl "180+1"]
[EndTime "11:57:56 PST"]
[Termination "SanQui14 won by resignation"]

1. e4 {[%clk 0:02:59.1]} 1... e5 {[%clk 0:02:58.5]} 2. Nf3 {[%clk 0:02:59.2]}
2... Nc6 {[%clk 0:02:58]} 3. Nc3 {[%clk 0:02:59.1]} 3... Nf6 {[%clk 0:02:57.9]}
4. d4 {[%clk 0:02:54.1]} 4... exd4 {[%clk 0:02:58]} 5. Nxd4 {[%clk 0:02:54.6]}
5... Bb4 {[%clk 0:02:58.2]} 6. Nxc6 {[%clk 0:02:51.3]} 6... bxc6 {[%clk
0:02:58.4]} 7. Bd3 {[%clk 0:02:51.7]} 7... d5 {[%clk 0:02:56.7]} 8. exd5 {[%clk
0:02:49.7]} 8... cxd5 {[%clk 0:02:57.6]} 9. O-O {[%clk 0:02:48.7]} 9... O-O
{[%clk 0:02:57.7]} 10. Bg5 {[%clk 0:02:48.9]} 10... c6 {[%clk 0:02:57.8]} 11.
Qf3 {[%clk 0:02:46.7]} 11... Be7 {[%clk 0:02:56.9]} 12. Ne2 {[%clk 0:02:46.2]}
12... h6 {[%clk 0:02:56.9]} 13. Bf4 {[%clk 0:02:43.1]} 13... Bg4 {[%clk
0:02:56.3]} 14. Qg3 {[%clk 0:02:43.3]} 14... Qd7 {[%clk 0:02:48.5]} 15. h3
{[%clk 0:02:35.6]} 15... Be6 {[%clk 0:02:26.8]} 16. Bxh6 {[%clk 0:01:58]} 16...
Nh5 {[%clk 0:02:25]} 17. Qf3 {[%clk 0:01:51.4]} 17... Nf6 {[%clk 0:02:24.8]} 18.
Bd2 {[%clk 0:01:25.5]} 18... Rfe8 {[%clk 0:02:24.5]} 19. Nf4 {[%clk 0:01:19.3]}
19... Bf5 {[%clk 0:02:23.7]} 20. Rae1 {[%clk 0:01:08.6]} 20... Bxd3 {[%clk
0:02:22.4]} 21. Nxd3 {[%clk 0:01:09]} 21... Ne4 {[%clk 0:02:22]} 22. Bc1 {[%clk
0:01:04.8]} 22... Bf6 {[%clk 0:02:21.6]} 23. Qh5 {[%clk 0:00:57.4]} 23... c5
{[%clk 0:02:14.4]} 24. b3 {[%clk 0:00:54.1]} 24... Rac8 {[%clk 0:02:12.6]} 25.
Nf4 {[%clk 0:00:52.2]} 25... d4 {[%clk 0:02:08.2]} 26. Nd3 {[%clk 0:00:34.8]}
26... Re6 {[%clk 0:02:02.6]} 27. Re2 {[%clk 0:00:19.8]} 27... Rce8 {[%clk
0:02:00.3]} 28. Rfe1 {[%clk 0:00:19.7]} 28... g6 {[%clk 0:01:58.4]} 29. Qg4
{[%clk 0:00:16.6]} 29... Bg7 {[%clk 0:01:58.2]} 30. Rxe4 {[%clk 0:00:14.3]}
30... f5 {[%clk 0:01:57.3]} 31. Nxc5 {[%clk 0:00:10.3]} 31... fxg4 {[%clk
0:01:52.8]} 32. Nxd7 {[%clk 0:00:08.5]} 32... Rxe4 {[%clk 0:01:53]} 33. Rxe4
{[%clk 0:00:06.4]} 33... Rxe4 {[%clk 0:01:53.9]} 34. Kh2 {[%clk 0:00:06.8]}
34... gxh3 {[%clk 0:01:53.2]} 35. Kxh3 {[%clk 0:00:06]} 35... Re2 {[%clk
0:01:53.8]} 36. Nc5 {[%clk 0:00:02.8]} 36... Rxc2 {[%clk 0:01:53.7]} 37. Nd3
{[%clk 0:00:01.4]} 37... Rc3 {[%clk 0:01:53.3]} 0-1

[Event "*** Titled Tuesday Blitz"]
[Site "Chess.com"]
[Date "2021.03.09"]
[Round "10"]
[White "WPWPWP-2015"]
[Black "Lestofante90"]
[Result "0-1"]
[WhiteElo "2509"]
[BlackElo "2715"]
[TimeControl "180+1"]
[EndTime "11:58:00 PST"]
[Termination "Lestofante90 won by resignation"]

1. d4 {[%clk 0:02:53.9]} 1... Nf6 {[%clk 0:02:59.3]} 2. c4 {[%clk 0:02:49.8]}
2... e6 {[%clk 0:02:59.5]} 3. Nc3 {[%clk 0:02:47.8]} 3... Bb4 {[%clk 0:02:59.6]}
4. e3 {[%clk 0:02:45.9]} 4... O-O {[%clk 0:02:58.9]} 5. Bd3 {[%clk 0:02:45.6]}
5... d5 {[%clk 0:02:58.9]} 6. Ne2 {[%clk 0:02:44.7]} 6... c5 {[%clk 0:02:55.7]}
7. cxd5 {[%clk 0:02:44.4]} 7... exd5 {[%clk 0:02:54.5]} 8. O-O {[%clk
0:02:41.3]} 8... Nc6 {[%clk 0:02:50.5]} 9. h3 {[%clk 0:02:40.5]} 9... c4 {[%clk
0:02:47]} 10. Bc2 {[%clk 0:02:39.1]} 10... Re8 {[%clk 0:02:47]} 11. Ng3 {[%clk
0:02:36.4]} 11... Bf8 {[%clk 0:02:45]} 12. b3 {[%clk 0:02:33.3]} 12... a6 {[%clk
0:02:34.2]} 13. bxc4 {[%clk 0:02:08.9]} 13... dxc4 {[%clk 0:02:34.1]} 14. Nce4
{[%clk 0:02:08.9]} 14... Nb4 {[%clk 0:02:18]} 15. Bb1 {[%clk 0:01:55.6]} 15...
Nbd5 {[%clk 0:01:57.6]} 16. Bb2 {[%clk 0:01:51.3]} 16... b5 {[%clk 0:01:56.8]}
17. a3 {[%clk 0:01:49.6]} 17... Bb7 {[%clk 0:01:55.5]} 18. Qd2 {[%clk
0:01:21.9]} 18... Rc8 {[%clk 0:01:51.5]} 19. Nxf6+ {[%clk 0:01:16]} 19... Qxf6
{[%clk 0:01:48.1]} 20. Ne4 {[%clk 0:01:07.9]} 20... Qc6 {[%clk 0:01:42.3]} 21.
f3 {[%clk 0:00:23.8]} 21... c3 {[%clk 0:01:30.6]} 22. Nxc3 {[%clk 0:00:23]}
22... Nxc3 {[%clk 0:01:30.7]} 23. Bxh7+ {[%clk 0:00:14.7]} 23... Kxh7 {[%clk
0:01:26.5]} 24. Rac1 {[%clk 0:00:14.1]} 24... Qe6 {[%clk 0:01:18.1]} 25. Qd3+
{[%clk 0:00:10.6]} 25... Kg8 {[%clk 0:01:13.5]} 26. Rxc3 {[%clk 0:00:09.2]}
26... Rxc3 {[%clk 0:01:13.2]} 27. Bxc3 {[%clk 0:00:09.1]} 27... Qxe3+ {[%clk
0:01:13.7]} 0-1

[Event "*** Titled Tuesday Blitz"]
[Site "Chess.com"]
[Date "2021.03.09"]
[Round "10"]
[White "ehrenfeld"]
[Black "Handszar"]
[Result "0-1"]
[WhiteElo "2489"]
[BlackElo "2396"]
[TimeControl "180+1"]
[EndTime "11:58:00 PST"]
[Termination "Handszar won by resignation"]

1. e4 {[%clk 0:03:00.2]} 1... c5 {[%clk 0:02:24.5]} 2. Nf3 {[%clk 0:02:59.1]}
2... d6 {[%clk 0:02:25.1]} 3. Bc4 {[%clk 0:02:58.6]} 3... Nf6 {[%clk 0:02:24.4]}
4. d3 {[%clk 0:02:58.4]} 4... e6 {[%clk 0:02:21.2]} 5. Bb3 {[%clk 0:02:57.6]}
5... Be7 {[%clk 0:02:21.6]} 6. O-O {[%clk 0:02:56.8]} 6... O-O {[%clk
0:02:22.1]} 7. Re1 {[%clk 0:02:56.6]} 7... Nbd7 {[%clk 0:02:14.1]} 8. c3 {[%clk
0:02:56.4]} 8... b6 {[%clk 0:02:06.7]} 9. d4 {[%clk 0:02:55.8]} 9... Bb7 {[%clk
0:01:57.8]} 10. Nbd2 {[%clk 0:02:52.9]} 10... cxd4 {[%clk 0:01:39.9]} 11. cxd4
{[%clk 0:02:52.6]} 11... Rc8 {[%clk 0:01:38.2]} 12. Bc2 {[%clk 0:02:52.1]} 12...
Qc7 {[%clk 0:01:34.8]} 13. Bd3 {[%clk 0:02:51.9]} 13... e5 {[%clk 0:01:33.1]}
14. d5 {[%clk 0:02:31.5]} 14... Nc5 {[%clk 0:01:30.1]} 15. Bf1 {[%clk
0:02:30.8]} 15... g6 {[%clk 0:01:10.1]} 16. b3 {[%clk 0:02:30.6]} 16... Nh5
{[%clk 0:01:09.2]} 17. Ba3 {[%clk 0:02:20]} 17... Nf4 {[%clk 0:01:04.1]} 18. Rc1
{[%clk 0:02:11.4]} 18... Qd7 {[%clk 0:01:04]} 19. Nc4 {[%clk 0:01:53.6]} 19...
f5 {[%clk 0:01:01.8]} 20. exf5 {[%clk 0:01:53.2]} 20... Qxf5 {[%clk 0:00:59.2]}
21. Ne3 {[%clk 0:01:41.2]} 21... Qf7 {[%clk 0:00:49.4]} 22. g3 {[%clk
0:01:23.5]} 22... Nxd5 {[%clk 0:00:40.7]} 23. Nxd5 {[%clk 0:01:22.4]} 23... Bxd5
{[%clk 0:00:38.6]} 24. Bxc5 {[%clk 0:00:45.5]} 24... Bxf3 {[%clk 0:00:37.7]} 0-1

[Event "*** Titled Tuesday Blitz"]
[Site "Chess.com"]
[Date "2021.03.09"]
[Round "10"]
[White "gusmaster2262"]
[Black "MillyNeuf"]
[Result "0-1"]
[WhiteElo "2169"]
[BlackElo "2287"]
[TimeControl "180+1"]
[EndTime "11:58:00 PST"]
[Termination "MillyNeuf won by resignation"]

1. e4 {[%clk 0:03:00.9]} 1... e5 {[%clk 0:02:59.2]} 2. Nf3 {[%clk 0:03:00]} 2...
Nc6 {[%clk 0:02:58.8]} 3. Bb5 {[%clk 0:02:59.7]} 3... a6 {[%clk 0:02:58.1]} 4.
Ba4 {[%clk 0:02:59.4]} 4... Nf6 {[%clk 0:02:57.8]} 5. O-O {[%clk 0:02:58.6]}
5... Nxe4 {[%clk 0:02:58.1]} 6. d4 {[%clk 0:02:57.3]} 6... b5 {[%clk 0:02:57.4]}
7. Bb3 {[%clk 0:02:57.8]} 7... d5 {[%clk 0:02:57.4]} 8. dxe5 {[%clk 0:02:58]}
8... Be6 {[%clk 0:02:57.9]} 9. c3 {[%clk 0:02:56.5]} 9... Nc5 {[%clk 0:02:56.2]}
10. Bc2 {[%clk 0:02:55.1]} 10... Be7 {[%clk 0:02:54.9]} 11. Be3 {[%clk
0:02:45.8]} 11... h6 {[%clk 0:02:49.5]} 12. Nbd2 {[%clk 0:02:43.8]} 12... Qd7
{[%clk 0:02:44.8]} 13. Re1 {[%clk 0:02:16]} 13... Rd8 {[%clk 0:02:41.8]} 14. Nf1
{[%clk 0:02:02.8]} 14... O-O {[%clk 0:02:33.5]} 15. b4 {[%clk 0:01:55.9]} 15...
Nb7 {[%clk 0:02:15.5]} 16. Qd3 {[%clk 0:01:50.4]} 16... g6 {[%clk 0:02:12.8]}
17. Bxh6 {[%clk 0:01:49.1]} 17... Rfe8 {[%clk 0:02:11.7]} 18. Qd2 {[%clk
0:01:42.3]} 18... a5 {[%clk 0:02:05.8]} 19. a3 {[%clk 0:01:35.3]} 19... axb4
{[%clk 0:01:59.3]} 20. axb4 {[%clk 0:01:33.9]} 20... d4 {[%clk 0:01:59.6]} 21.
Be4 {[%clk 0:01:13.5]} 21... Bd5 {[%clk 0:01:48]} 22. Red1 {[%clk 0:01:02.5]}
22... Bxe4 {[%clk 0:01:42.3]} 23. Qf4 {[%clk 0:00:57.5]} 23... Bxf3 {[%clk
0:01:31.8]} 24. gxf3 {[%clk 0:00:54.9]} 24... d3 {[%clk 0:01:30.1]} 25. Ng3
{[%clk 0:00:44.9]} 25... Bf8 {[%clk 0:01:25.3]} 26. Bg5 {[%clk 0:00:43.7]} 26...
Be7 {[%clk 0:01:20.8]} 27. Ne4 {[%clk 0:00:42.7]} 27... Qf5 {[%clk 0:01:15.7]}
28. Qh4 {[%clk 0:00:39.4]} 28... Nxe5 {[%clk 0:01:07.5]} 0-1

[Event "*** Titled Tuesday Blitz"]
[Site "Chess.com"]
[Date "2021.03.09"]
[Round "10"]
[White "chessdiamant"]
[Black "Tekushka"]
[Result "1-0"]
[WhiteElo "2364"]
[BlackElo "2446"]
[TimeControl "180+1"]
[EndTime "11:58:03 PST"]
[Termination "chessdiamant won on time"]

1. e4 {[%clk 0:02:59.1]} 1... e6 {[%clk 0:02:59.8]} 2. d4 {[%clk 0:02:58.8]}
2... d5 {[%clk 0:03:00.2]} 3. Nc3 {[%clk 0:02:58]} 3... Nf6 {[%clk 0:02:59.8]}
4. e5 {[%clk 0:02:56.7]} 4... Nfd7 {[%clk 0:02:59.6]} 5. f4 {[%clk 0:02:56.9]}
5... c5 {[%clk 0:03:00.2]} 6. Nf3 {[%clk 0:02:56.5]} 6... Nc6 {[%clk 0:03:00.8]}
7. Be3 {[%clk 0:02:54.5]} 7... a6 {[%clk 0:03:01.2]} 8. Qd2 {[%clk 0:02:52.8]}
8... b5 {[%clk 0:03:01.3]} 9. dxc5 {[%clk 0:02:50.7]} 9... Bxc5 {[%clk
0:03:00.8]} 10. Bxc5 {[%clk 0:02:49.4]} 10... Nxc5 {[%clk 0:03:01]} 11. Nd4
{[%clk 0:02:50.1]} 11... Bb7 {[%clk 0:03:00.5]} 12. O-O-O {[%clk 0:02:41.8]}
12... b4 {[%clk 0:02:32.6]} 13. Nce2 {[%clk 0:02:39.6]} 13... Qb6 {[%clk
0:02:12.9]} 14. Nxc6 {[%clk 0:02:36.4]} 14... Bxc6 {[%clk 0:02:11.6]} 15. Nd4
{[%clk 0:02:36.9]} 15... Ne4 {[%clk 0:02:03.1]} 16. Qe3 {[%clk 0:02:33.1]} 16...
a5 {[%clk 0:01:57.5]} 17. Bd3 {[%clk 0:02:31.6]} 17... Nc5 {[%clk 0:01:49.2]}
18. f5 {[%clk 0:02:30.1]} 18... b3 {[%clk 0:01:34.7]} 19. axb3 {[%clk
0:02:15.7]} 19... a4 {[%clk 0:01:33.5]} 20. b4 {[%clk 0:02:11.4]} 20... Nd7
{[%clk 0:00:50.8]} 21. fxe6 {[%clk 0:02:03.9]} 21... fxe6 {[%clk 0:00:51.1]} 22.
Rhe1 {[%clk 0:01:48.7]} 22... a3 {[%clk 0:00:40.9]} 23. bxa3 {[%clk 0:01:46.9]}
23... Rxa3 {[%clk 0:00:26.6]} 24. Bg6+ {[%clk 0:01:46.3]} 24... hxg6 {[%clk
0:00:27.2]} 25. Qxa3 {[%clk 0:01:46.4]} 25... Rh4 {[%clk 0:00:20.3]} 26. c3
{[%clk 0:01:38.9]} 26... Rxh2 {[%clk 0:00:15.6]} 27. Nxe6 {[%clk 0:01:32.5]}
27... Rxg2 {[%clk 0:00:13.3]} 28. Rf1 {[%clk 0:01:29.9]} 28... Ke7 {[%clk
0:00:10.4]} 29. b5+ {[%clk 0:01:23.5]} 1-0

[Event "*** Titled Tuesday Blitz"]
[Site "Chess.com"]
[Date "2021.03.09"]
[Round "10"]
[White "Fandorine"]
[Black "GregShahade"]
[Result "1-0"]
[WhiteElo "2896"]
[BlackElo "2757"]
[TimeControl "180+1"]
[EndTime "11:58:09 PST"]
[Termination "Fandorine won by resignation"]

1. Nf3 {[%clk 0:03:00.9]} 1... Nf6 {[%clk 0:02:59.8]} 2. g3 {[%clk 0:03:00.5]}
2... g6 {[%clk 0:03:00.1]} 3. b3 {[%clk 0:03:00.4]} 3... Bg7 {[%clk 0:03:00.2]}
4. Bb2 {[%clk 0:03:01]} 4... O-O {[%clk 0:03:00.8]} 5. c4 {[%clk 0:03:01.5]}
5... d5 {[%clk 0:03:00.2]} 6. cxd5 {[%clk 0:03:01]} 6... Nxd5 {[%clk 0:03:00.6]}
7. Bxg7 {[%clk 0:03:00.8]} 7... Kxg7 {[%clk 0:03:01.5]} 8. Bg2 {[%clk
0:03:01.4]} 8... c5 {[%clk 0:02:46.5]} 9. O-O {[%clk 0:03:01]} 9... Nc6 {[%clk
0:02:46.3]} 10. d4 {[%clk 0:03:01.7]} 10... cxd4 {[%clk 0:02:22.6]} 11. Nxd4
{[%clk 0:03:02.6]} 11... Nxd4 {[%clk 0:02:20.7]} 12. Qxd4+ {[%clk 0:03:03.4]}
12... Nf6 {[%clk 0:02:21.3]} 13. Qe5 {[%clk 0:03:03.7]} 13... Qd6 {[%clk
0:02:15.9]} 14. Qxd6 {[%clk 0:03:03.5]} 14... exd6 {[%clk 0:02:16.2]} 15. Nc3
{[%clk 0:02:57.6]} 15... Rb8 {[%clk 0:02:07.3]} 16. Rfd1 {[%clk 0:02:56.8]}
16... Be6 {[%clk 0:02:07]} 17. Rxd6 {[%clk 0:02:42.2]} 17... Rfc8 {[%clk
0:02:07.1]} 18. Nb5 {[%clk 0:02:41.7]} 18... Rc5 {[%clk 0:01:49]} 19. Nd4 {[%clk
0:02:34.4]} 19... Bg4 {[%clk 0:01:48.1]} 20. Nf3 {[%clk 0:01:52.6]} 20... Re8
{[%clk 0:01:41]} 21. Rd2 {[%clk 0:01:35.8]} 21... Ne4 {[%clk 0:01:40.4]} 22. Rb2
{[%clk 0:01:35.6]} 22... Nc3 {[%clk 0:01:40.5]} 23. e3 {[%clk 0:01:28.6]} 23...
b5 {[%clk 0:01:33.5]} 24. Nd4 {[%clk 0:01:20]} 24... b4 {[%clk 0:01:32.4]} 25.
h3 {[%clk 0:01:16.2]} 25... Bd7 {[%clk 0:01:29.2]} 26. a3 {[%clk 0:01:14.5]}
26... a5 {[%clk 0:01:25.1]} 27. axb4 {[%clk 0:01:06.8]} 27... axb4 {[%clk
0:01:26]} 28. Ra7 {[%clk 0:01:04.7]} 28... Bc8 {[%clk 0:00:47.9]} 29. Kh2 {[%clk
0:00:58.1]} 29... Nb5 {[%clk 0:00:26.8]} 30. Nxb5 {[%clk 0:00:56.3]} 30... Rxb5
{[%clk 0:00:25.2]} 31. Bc6 {[%clk 0:00:56.3]} 31... Rh5 {[%clk 0:00:20]} 1-0

[Event "*** Titled Tuesday Blitz"]
[Site "Chess.com"]
[Date "2021.03.09"]
[Round "10"]
[White "Mr_Sinigami"]
[Black "djano"]
[Result "1-0"]
[WhiteElo "2592"]
[BlackElo "2467"]
[TimeControl "180+1"]
[EndTime "11:58:09 PST"]
[Termination "Mr_Sinigami won by resignation"]

1. d4 {[%clk 0:03:00.9]} 1... Nf6 {[%clk 0:02:58.4]} 2. Bg5 {[%clk 0:02:54.8]}
2... d5 {[%clk 0:02:56]} 3. Nd2 {[%clk 0:02:53.3]} 3... Nbd7 {[%clk 0:02:47.3]}
4. e3 {[%clk 0:02:52.2]} 4... c5 {[%clk 0:02:44.1]} 5. c3 {[%clk 0:02:51.1]}
5... Qb6 {[%clk 0:02:44.3]} 6. Rb1 {[%clk 0:02:48.2]} 6... e5 {[%clk 0:02:37.9]}
7. dxe5 {[%clk 0:02:46.5]} 7... Nxe5 {[%clk 0:02:36.8]} 8. Ngf3 {[%clk
0:02:46.3]} 8... Ng6 {[%clk 0:02:29.1]} 9. Bxf6 {[%clk 0:02:40.5]} 9... Qxf6
{[%clk 0:02:27]} 10. Bb5+ {[%clk 0:02:39.7]} 10... Ke7 {[%clk 0:02:16.8]} 11.
O-O {[%clk 0:02:37.6]} 11... Bf5 {[%clk 0:02:13.2]} 12. e4 {[%clk 0:02:31.7]}
12... dxe4 {[%clk 0:02:13.4]} 13. Nxe4 {[%clk 0:02:31.1]} 13... Bxe4 {[%clk
0:02:12.4]} 14. Re1 {[%clk 0:02:30.9]} 14... Qf5 {[%clk 0:01:41.8]} 15. Qd3
{[%clk 0:02:12.4]} 15... Nf4 {[%clk 0:01:25.6]} 16. Rxe4+ {[%clk 0:02:10.5]}
16... Ne6 {[%clk 0:01:25.5]} 17. Rbe1 {[%clk 0:01:55.3]} 17... Kf6 {[%clk
0:01:07.5]} 18. Nh4 {[%clk 0:01:48.2]} 18... Qh5 {[%clk 0:00:35.8]} 19. Qd7
{[%clk 0:01:32.7]} 19... g6 {[%clk 0:00:30.1]} 20. Rxe6+ {[%clk 0:01:21.5]}
20... Kg7 {[%clk 0:00:27.7]} 21. g3 {[%clk 0:01:04]} 21... c4 {[%clk 0:00:22.6]}
22. Bxc4 {[%clk 0:01:01.9]} 22... Bc5 {[%clk 0:00:17.8]} 23. R6e5 {[%clk
0:01:00.5]} 23... Bxf2+ {[%clk 0:00:11.6]} 24. Kxf2 {[%clk 0:00:59.1]} 1-0